[Event "January 2 Early 2024"]
[Site "https://www.chess.com"]
[Date "2024.01.02"]
[Round "9"]
[White "Legenia, Artem"]
[Black "Omariev, Maksim"]
[Result "1-0"]
[Board "139"]
[TimeControl "180+1"]
[WhiteFideId "14136945"]
[BlackFideId "4193423"]
[WhiteElo "2372"]
[BlackElo "2408"]
[WhiteTeam "UKR"]
[BlackTeam "RUS"]
[WhiteClock "0:00:29"]
[BlackClock "0:00:04"]

1. b4 {[%clk 0:02:55]}  h5 {[%clk 0:02:57]} 2. Bb2 {[%clk 0:02:54]}  h4 {[%clk 0:02:58]} 3. h3 {[%clk 0:02:54]}  d5 {[%clk 0:02:58]} 4. a3 {[%clk 0:02:54]}  Nf6 {[%clk 0:02:57]} 5. Nf3 {[%clk 0:02:54]}  Bf5 {[%clk 0:02:56]} 6. e3 {[%clk 0:02:54]}  e6 {[%clk 0:02:57]} 7. c4 {[%clk 0:02:55]}  Be7 {[%clk 0:02:57]} 8. Nc3 {[%clk 0:02:55]}  a5 {[%clk 0:02:47]} 9. b5 {[%clk 0:02:54]}  Nbd7 {[%clk 0:02:47]} 10. d4 {[%clk 0:02:53]}  dxc4 {[%clk 0:02:38]} 11. Bxc4 {[%clk 0:02:53]}  Nb6 {[%clk 0:02:39]} 12. Bd3 {[%clk 0:02:52]}  Bxd3 {[%clk 0:02:28]} 13. Qxd3 {[%clk 0:02:51]}  Nfd5 {[%clk 0:02:29]} 14. Rc1 {[%clk 0:02:34]}  O-O {[%clk 0:02:28]} 15. Ne5 {[%clk 0:02:29]}  Bd6 {[%clk 0:02:13]} 16. Nc4 {[%clk 0:02:12]}  Nxc4 {[%clk 0:02:08]} 17. Qxc4 {[%clk 0:02:12]}  Nb6 {[%clk 0:02:06]} 18. Qd3 {[%clk 0:02:11]}  f5 {[%clk 0:01:32]} 19. O-O {[%clk 0:01:59]}  Qe7 {[%clk 0:01:14]} 20. a4 {[%clk 0:01:49]}  Rf6 {[%clk 0:01:14]} 21. e4 {[%clk 0:01:44]}  Bf4 {[%clk 0:01:01]} 22. Rce1 {[%clk 0:01:40]}  Qb4 {[%clk 0:00:57]} 23. Ba1 {[%clk 0:01:37]}  Rd8 {[%clk 0:00:55]} 24. d5 {[%clk 0:01:30]}  Qc4 {[%clk 0:00:04]} 25. Qxc4 {[%clk 0:00:57]}  Nxc4 {[%clk 0:00:05]} 26. dxe6 {[%clk 0:00:46]}  fxe4 {[%clk 0:00:02]} 27. Rxe4 {[%clk 0:00:45]}  Bg5 {[%clk 0:00:01]} 28. e7 {[%clk 0:00:44]}  Re8 {[%clk 0:00:01]} 29. Nd5 {[%clk 0:00:43]}  Nd6 {[%clk 0:00:02]} 30. Nxf6+ {[%clk 0:00:42]}  Bxf6 {[%clk 0:00:03]} 31. Bxf6 {[%clk 0:00:42]}  gxf6 {[%clk 0:00:03]} 32. Rxh4 {[%clk 0:00:39]}  Rxe7 {[%clk 0:00:03]} 33. Rc1 {[%clk 0:00:37]}  f5 {[%clk 0:00:03]} 34. Rd4 {[%clk 0:00:33]}  Kf7 {[%clk 0:00:03]} 35. b6 {[%clk 0:00:34]}  Ke6 {[%clk 0:00:02]} 36. bxc7 {[%clk 0:00:33]}  Nc8 {[%clk 0:00:03]} 37. Rd8 {[%clk 0:00:33]}  Nb6 {[%clk 0:00:03]} 38. c8=Q+ {[%clk 0:00:33]}  Nxc8 {[%clk 0:00:03]} 39. Rdxc8 {[%clk 0:00:33]}  Ke5 {[%clk 0:00:04]} 40. Re1+ {[%clk 0:00:32]}  Kf6 {[%clk 0:00:04]} 41. Rxe7 {[%clk 0:00:33]}  Kxe7 {[%clk 0:00:05]} 42. Rc5 {[%clk 0:00:33]}  b6 {[%clk 0:00:05]} 43. Rxf5 {[%clk 0:00:33]}  Kd6 {[%clk 0:00:06]} 44. g4 {[%clk 0:00:32]}  Ke6 {[%clk 0:00:06]} 45. f4 {[%clk 0:00:32]}  Kd6 {[%clk 0:00:06]} 46. g5 {[%clk 0:00:33]}  Kc6 {[%clk 0:00:06]} 47. g6 {[%clk 0:00:33]}  Kb7 {[%clk 0:00:06]} 48. g7 {[%clk 0:00:33]}  Ka6 {[%clk 0:00:05]} 49. g8=Q {[%clk 0:00:33]}  Ka7 {[%clk 0:00:04]} 50. Rf7+ {[%clk 0:00:29]} 1-0

[Event "January 2 Early 2024"]
[Site "https://www.chess.com"]
[Date "2024.01.02"]
[Round "9"]
[White "Zhuk, Valeriy"]
[Black "Chirivi C, Jenny Astrid"]
[Result "1-0"]
[Board "140"]
[TimeControl "180+1"]
[WhiteFideId "24151254"]
[BlackFideId "4403061"]
[WhiteElo "2393"]
[BlackElo "2248"]
[WhiteTeam "RUS"]
[BlackTeam "COL"]
[WhiteClock "0:00:51"]
[BlackClock "0:00:15"]

1. e4 {[%clk 0:03:00]}  c5 {[%clk 0:02:59]} 2. Nf3 {[%clk 0:02:59]}  e6 {[%clk 0:02:59]} 3. d4 {[%clk 0:02:59]}  cxd4 {[%clk 0:02:59]} 4. Nxd4 {[%clk 0:03:00]}  a6 {[%clk 0:03:00]} 5. c4 {[%clk 0:02:59]}  Nf6 {[%clk 0:02:58]} 6. Nc3 {[%clk 0:02:59]}  Qc7 {[%clk 0:02:59]} 7. a3 {[%clk 0:02:58]}  b6 {[%clk 0:02:58]} 8. Be3 {[%clk 0:02:53]}  Bb7 {[%clk 0:02:58]} 9. f3 {[%clk 0:02:54]}  Be7 {[%clk 0:02:54]} 10. Be2 {[%clk 0:02:53]}  d6 {[%clk 0:02:54]} 11. O-O {[%clk 0:02:54]}  Nbd7 {[%clk 0:02:54]} 12. b4 {[%clk 0:02:53]}  O-O {[%clk 0:02:54]} 13. Qe1 {[%clk 0:02:53]}  Rac8 {[%clk 0:02:48]} 14. Rc1 {[%clk 0:02:52]}  Qb8 {[%clk 0:02:47]} 15. Qf2 {[%clk 0:02:52]}  Ne5 {[%clk 0:02:46]} 16. Na4 {[%clk 0:02:44]}  Ba8 {[%clk 0:02:38]} 17. b5 {[%clk 0:02:05]}  a5 {[%clk 0:02:06]} 18. Nb3 {[%clk 0:01:41]}  Rc5 {[%clk 0:01:45]} 19. Naxc5 {[%clk 0:01:24]}  dxc5 {[%clk 0:01:44]} 20. Rfd1 {[%clk 0:01:20]}  Rd8 {[%clk 0:01:42]} 21. Rxd8+ {[%clk 0:01:16]}  Bxd8 {[%clk 0:01:40]} 22. Rd1 {[%clk 0:01:15]}  Bc7 {[%clk 0:01:40]} 23. g3 {[%clk 0:01:14]}  h6 {[%clk 0:01:37]} 24. Bf4 {[%clk 0:01:11]}  Ng6 {[%clk 0:01:23]} 25. Bxc7 {[%clk 0:01:11]}  Qxc7 {[%clk 0:01:24]} 26. Qe3 {[%clk 0:01:10]}  Nf8 {[%clk 0:00:58]} 27. Qf4 {[%clk 0:01:06]}  e5 {[%clk 0:00:57]} 28. Qd2 {[%clk 0:01:05]}  Ne6 {[%clk 0:00:56]} 29. Qd6 {[%clk 0:01:05]}  Ne8 {[%clk 0:00:31]} 30. Qxc7 {[%clk 0:01:04]}  N8xc7 {[%clk 0:00:31]} 31. Rd6 {[%clk 0:00:56]}  Kf8 {[%clk 0:00:31]} 32. Rxb6 {[%clk 0:00:56]}  Ke7 {[%clk 0:00:25]} 33. Nxa5 {[%clk 0:00:56]}  Nd4 {[%clk 0:00:23]} 34. Bd1 {[%clk 0:00:56]}  g5 {[%clk 0:00:17]} 35. Rb8 {[%clk 0:00:54]}  g4 {[%clk 0:00:17]} 36. b6 {[%clk 0:00:54]}  gxf3 {[%clk 0:00:16]} 37. bxc7 {[%clk 0:00:54]}  Bxe4 {[%clk 0:00:15]} 38. c8=Q {[%clk 0:00:51]} 1-0

[Event "January 2 Early 2024"]
[Site "https://www.chess.com"]
[Date "2024.01.02"]
[Round "9"]
[White "Kraus, Tomas"]
[Black "Yushko, Olga"]
[Result "1/2-1/2"]
[Board "142"]
[TimeControl "180+1"]
[WhiteFideId "331708"]
[BlackFideId "14114500"]
[WhiteElo "2387"]
[BlackElo "2191"]
[WhiteTeam "CZE"]
[BlackTeam "UKR"]
[WhiteClock "0:00:01"]
[BlackClock "0:00:33"]

1. e4 {[%clk 0:03:00]}  e6 {[%clk 0:02:59]} 2. d4 {[%clk 0:03:00]}  d5 {[%clk 0:02:59]} 3. Nd2 {[%clk 0:02:55]}  Nf6 {[%clk 0:02:59]} 4. e5 {[%clk 0:02:56]}  Nfd7 {[%clk 0:02:59]} 5. f4 {[%clk 0:02:57]}  c5 {[%clk 0:03:00]} 6. Ndf3 {[%clk 0:02:56]}  Nc6 {[%clk 0:03:01]} 7. c3 {[%clk 0:02:57]}  Qb6 {[%clk 0:03:01]} 8. Qb3 {[%clk 0:02:43]}  Qxb3 {[%clk 0:02:59]} 9. axb3 {[%clk 0:02:42]}  cxd4 {[%clk 0:02:59]} 10. Nxd4 {[%clk 0:02:41]}  Nxd4 {[%clk 0:02:59]} 11. cxd4 {[%clk 0:02:42]}  Nb8 {[%clk 0:02:57]} 12. Kd2 {[%clk 0:02:07]}  Bb4+ {[%clk 0:02:49]} 13. Ke3 {[%clk 0:02:07]}  Nc6 {[%clk 0:02:47]} 14. Bb5 {[%clk 0:02:00]}  Bd7 {[%clk 0:02:47]} 15. Ne2 {[%clk 0:02:00]}  O-O {[%clk 0:02:41]} 16. Bd2 {[%clk 0:01:43]}  Be7 {[%clk 0:02:36]} 17. Rhc1 {[%clk 0:01:03]}  a6 {[%clk 0:02:34]} 18. Bd3 {[%clk 0:01:03]}  Rac8 {[%clk 0:02:26]} 19. g4 {[%clk 0:00:55]}  Bb4 {[%clk 0:02:25]} 20. f5 {[%clk 0:00:50]}  exf5 {[%clk 0:02:15]} 21. gxf5 {[%clk 0:00:51]}  Bxd2+ {[%clk 0:02:14]} 22. Kxd2 {[%clk 0:00:50]}  Nb4 {[%clk 0:02:15]} 23. f6 {[%clk 0:00:19]}  Nxd3 {[%clk 0:02:10]} 24. fxg7 {[%clk 0:00:18]}  Nxc1 {[%clk 0:01:55]} 25. gxf8=Q+ {[%clk 0:00:15]}  Kxf8 {[%clk 0:01:55]} 26. Rxc1 {[%clk 0:00:14]}  Ke7 {[%clk 0:01:44]} 27. Rxc8 {[%clk 0:00:11]}  Bxc8 {[%clk 0:01:45]} 28. Nf4 {[%clk 0:00:11]}  Be6 {[%clk 0:01:42]} 29. b4 {[%clk 0:00:08]}  Kd7 {[%clk 0:01:41]} 30. Kc3 {[%clk 0:00:07]}  Kc6 {[%clk 0:01:41]} 31. Kb3 {[%clk 0:00:05]}  Bf5 {[%clk 0:01:41]} 32. Ka3 {[%clk 0:00:02]}  Be4 {[%clk 0:01:38]} 33. Kb3 {[%clk 0:00:02]}  Kb5 {[%clk 0:01:38]} 34. Kc3 {[%clk 0:00:03]}  b6 {[%clk 0:01:32]} 35. h4 {[%clk 0:00:03]}  a5 {[%clk 0:01:31]} 36. bxa5 {[%clk 0:00:04]}  bxa5 {[%clk 0:01:30]} 37. h5 {[%clk 0:00:04]}  h6 {[%clk 0:01:26]} 38. Ne2 {[%clk 0:00:02]}  Bf3 {[%clk 0:01:23]} 39. Ng3 {[%clk 0:00:02]}  a4 {[%clk 0:01:22]} 40. Nf5 {[%clk 0:00:02]}  Bxh5 {[%clk 0:01:21]} 41. Nxh6 {[%clk 0:00:02]}  Bg6 {[%clk 0:01:18]} 42. Ng4 {[%clk 0:00:02]}  Bf5 {[%clk 0:01:18]} 43. Nf6 {[%clk 0:00:03]}  Be6 {[%clk 0:01:17]} 44. Ne8 {[%clk 0:00:03]}  Ka5 {[%clk 0:01:12]} 45. Nd6 {[%clk 0:00:03]}  Kb6 {[%clk 0:01:06]} 46. Kb4 {[%clk 0:00:02]}  Kc6 {[%clk 0:01:02]} 47. Kxa4 {[%clk 0:00:02]}  f6 {[%clk 0:01:03]} 48. b4 {[%clk 0:00:02]}  fxe5 {[%clk 0:01:03]} 49. dxe5 {[%clk 0:00:03]}  d4 {[%clk 0:01:03]} 50. b5+ {[%clk 0:00:02]}  Kb6 {[%clk 0:01:02]} 51. Kb4 {[%clk 0:00:02]}  Bd5 {[%clk 0:00:57]} 52. Nc4+ {[%clk 0:00:01]}  Kc7 {[%clk 0:00:56]} 53. Nd6 {[%clk 0:00:01]}  Kb6 {[%clk 0:00:56]} 54. Nc4+ {[%clk 0:00:01]}  Kb7 {[%clk 0:00:51]} 55. Kc5 {[%clk 0:00:02]}  Be6 {[%clk 0:00:48]} 56. Kxd4 {[%clk 0:00:02]}  Kc7 {[%clk 0:00:48]} 57. Kc5 {[%clk 0:00:03]}  Bf5 {[%clk 0:00:47]} 58. b6+ {[%clk 0:00:03]}  Kb8 {[%clk 0:00:47]} 59. Nd6 {[%clk 0:00:04]}  Be6 {[%clk 0:00:47]} 60. Kc6 {[%clk 0:00:03]}  Bh3 {[%clk 0:00:43]} 61. Nf7 {[%clk 0:00:03]}  Bg2+ {[%clk 0:00:42]} 62. Kd6 {[%clk 0:00:03]}  Bh3 {[%clk 0:00:38]} 63. e6 {[%clk 0:00:03]}  Bxe6 {[%clk 0:00:37]} 64. Nd8 {[%clk 0:00:03]}  Bh3 {[%clk 0:00:35]} 65. Nc6+ {[%clk 0:00:03]}  Kb7 {[%clk 0:00:35]} 66. Kc5 {[%clk 0:00:04]}  Bg2 {[%clk 0:00:35]} 67. Na5+ {[%clk 0:00:05]}  Kb8 {[%clk 0:00:35]} 68. Nc6+ {[%clk 0:00:04]}  Kb7 {[%clk 0:00:35]} 69. Na5+ {[%clk 0:00:04]}  Ka6 {[%clk 0:00:33]} 70. Kb4 {[%clk 0:00:01]}  Kxb6 {[%clk 0:00:33]} 1/2-1/2

[Event "January 2 Early 2024"]
[Site "https://www.chess.com"]
[Date "2024.01.02"]
[Round "9"]
[White "Gopal, K.N."]
[Black "Rios Escobar, Adan"]
[Result "1/2-1/2"]
[Board "143"]
[TimeControl "180+1"]
[WhiteFideId "5001447"]
[BlackFideId "3403645"]
[WhiteElo "2191"]
[BlackElo "2381"]
[WhiteTeam "IND"]
[BlackTeam "CHI"]
[WhiteClock "0:00:09"]
[BlackClock "0:00:07"]

1. e4 {[%clk 0:03:00]}  c5 {[%clk 0:02:49]} 2. Nf3 {[%clk 0:02:59]}  d6 {[%clk 0:02:39]} 3. d4 {[%clk 0:02:59]}  cxd4 {[%clk 0:02:39]} 4. Nxd4 {[%clk 0:02:58]}  Nf6 {[%clk 0:02:39]} 5. Nc3 {[%clk 0:02:57]}  a6 {[%clk 0:02:39]} 6. a4 {[%clk 0:02:56]}  g6 {[%clk 0:02:38]} 7. Be2 {[%clk 0:02:54]}  Bg7 {[%clk 0:02:38]} 8. Be3 {[%clk 0:02:54]}  O-O {[%clk 0:02:39]} 9. O-O {[%clk 0:02:53]}  Nc6 {[%clk 0:02:37]} 10. Kh1 {[%clk 0:02:51]}  Nd7 {[%clk 0:02:35]} 11. f4 {[%clk 0:02:50]}  Nxd4 {[%clk 0:02:20]} 12. Bxd4 {[%clk 0:02:48]}  b6 {[%clk 0:02:18]} 13. Bf3 {[%clk 0:02:41]}  Bb7 {[%clk 0:02:17]} 14. Bxg7 {[%clk 0:02:37]}  Kxg7 {[%clk 0:02:17]} 15. Qd4+ {[%clk 0:02:36]}  Kg8 {[%clk 0:02:18]} 16. Rad1 {[%clk 0:02:32]}  Qc7 {[%clk 0:02:17]} 17. h3 {[%clk 0:02:21]}  Qc5 {[%clk 0:02:13]} 18. Qd3 {[%clk 0:02:18]}  Rac8 {[%clk 0:02:10]} 19. e5 {[%clk 0:02:11]}  Bxf3 {[%clk 0:02:08]} 20. Qxf3 {[%clk 0:02:10]}  Qb4 {[%clk 0:01:45]} 21. exd6 {[%clk 0:02:04]}  exd6 {[%clk 0:01:41]} 22. Ne4 {[%clk 0:01:52]}  Qxb2 {[%clk 0:01:39]} 23. Rxd6 {[%clk 0:01:50]}  Nc5 {[%clk 0:01:34]} 24. Nf6+ {[%clk 0:01:44]}  Kg7 {[%clk 0:01:33]} 25. Qg4 {[%clk 0:01:40]}  Ne6 {[%clk 0:01:11]} 26. Nd5 {[%clk 0:01:22]}  h5 {[%clk 0:00:59]} 27. Qg3 {[%clk 0:01:13]}  Nc5 {[%clk 0:00:09]} 28. f5 {[%clk 0:01:06]}  Ne4 {[%clk 0:00:09]} 29. f6+ {[%clk 0:01:03]}  Kh7 {[%clk 0:00:07]} 30. Qf4 {[%clk 0:00:49]}  Nxd6 {[%clk 0:00:08]} 31. Qxd6 {[%clk 0:00:49]}  Rcd8 {[%clk 0:00:08]} 32. Qc6 {[%clk 0:00:45]}  Qd4 {[%clk 0:00:04]} 33. Ne7 {[%clk 0:00:43]}  Rd6 {[%clk 0:00:04]} 34. Qf3 {[%clk 0:00:29]}  Rfd8 {[%clk 0:00:05]} 35. Nf5 {[%clk 0:00:26]}  Qxf6 {[%clk 0:00:04]} 36. Nxd6 {[%clk 0:00:24]}  Qxf3 {[%clk 0:00:04]} 37. Rxf3 {[%clk 0:00:24]}  Rxd6 {[%clk 0:00:05]} 38. Rxf7+ {[%clk 0:00:24]}  Kh6 {[%clk 0:00:05]} 39. Rc7 {[%clk 0:00:22]}  h4 {[%clk 0:00:04]} 40. Kg1 {[%clk 0:00:21]}  Kg5 {[%clk 0:00:05]} 41. Kf2 {[%clk 0:00:21]}  Kf5 {[%clk 0:00:04]} 42. Kf3 {[%clk 0:00:20]}  g5 {[%clk 0:00:02]} 43. Rc4 {[%clk 0:00:20]}  b5 {[%clk 0:00:02]} 44. axb5 {[%clk 0:00:19]}  axb5 {[%clk 0:00:03]} 45. Rc5+ {[%clk 0:00:20]}  Kf6 {[%clk 0:00:02]} 46. Rxb5 {[%clk 0:00:20]}  Rc6 {[%clk 0:00:03]} 47. Rb2 {[%clk 0:00:18]}  Rc3+ {[%clk 0:00:03]} 48. Kf2 {[%clk 0:00:18]}  Kf5 {[%clk 0:00:04]} 49. Ke2 {[%clk 0:00:17]}  Kf4 {[%clk 0:00:04]} 50. Kf2 {[%clk 0:00:17]}  Rc4 {[%clk 0:00:03]} 51. Ke2 {[%clk 0:00:16]}  g4 {[%clk 0:00:04]} 52. hxg4 {[%clk 0:00:15]}  Kxg4 {[%clk 0:00:04]} 53. Kf2 {[%clk 0:00:15]}  Kf4 {[%clk 0:00:03]} 54. Ke2 {[%clk 0:00:15]}  Kg3 {[%clk 0:00:03]} 55. Kd3 {[%clk 0:00:13]}  Rf4 {[%clk 0:00:03]} 56. c4 {[%clk 0:00:12]}  Rf2 {[%clk 0:00:02]} 57. Rxf2 {[%clk 0:00:12]}  Kxf2 {[%clk 0:00:03]} 58. c5 {[%clk 0:00:12]}  Kxg2 {[%clk 0:00:04]} 59. c6 {[%clk 0:00:13]}  h3 {[%clk 0:00:05]} 60. c7 {[%clk 0:00:13]}  h2 {[%clk 0:00:06]} 61. c8=Q {[%clk 0:00:12]}  h1=Q {[%clk 0:00:07]} 62. Qc6+ {[%clk 0:00:12]}  Kh2 {[%clk 0:00:07]} 63. Qh6+ {[%clk 0:00:12]}  Kg1 {[%clk 0:00:07]} 64. Qc1+ {[%clk 0:00:11]}  Kh2 {[%clk 0:00:07]} 65. Qh6+ {[%clk 0:00:11]}  Kg2 {[%clk 0:00:07]} 66. Qc6+ {[%clk 0:00:09]}  Kg1 {[%clk 0:00:06]} 67. Qxh1+ {[%clk 0:00:09]}  Kxh1 {[%clk 0:00:07]} 1/2-1/2

[Event "January 2 Early 2024"]
[Site "https://www.chess.com"]
[Date "2024.01.02"]
[Round "9"]
[White "Tuleyeva-Aketayeva, Dana"]
[Black "Povshednyi, Ivan"]
[Result "1/2-1/2"]
[Board "146"]
[TimeControl "180+1"]
[WhiteFideId "13701932"]
[BlackFideId "14190907"]
[WhiteElo "2326"]
[BlackElo "2571"]
[WhiteTeam "KAZ"]
[BlackTeam "UKR"]
[WhiteClock "0:00:09"]
[BlackClock "0:00:17"]

1. d4 {[%clk 0:03:00]}  Nf6 {[%clk 0:02:59]} 2. Nf3 {[%clk 0:02:54]}  c5 {[%clk 0:02:58]} 3. g3 {[%clk 0:02:49]}  b6 {[%clk 0:02:55]} 4. Bg2 {[%clk 0:02:49]}  Bb7 {[%clk 0:02:55]} 5. O-O {[%clk 0:02:50]}  e6 {[%clk 0:02:56]} 6. c4 {[%clk 0:02:49]}  cxd4 {[%clk 0:02:56]} 7. Nxd4 {[%clk 0:02:45]}  Bxg2 {[%clk 0:02:57]} 8. Kxg2 {[%clk 0:02:46]}  Qc7 {[%clk 0:02:57]} 9. b3 {[%clk 0:02:42]}  Na6 {[%clk 0:02:56]} 10. Kg1 {[%clk 0:02:40]}  Qb7 {[%clk 0:02:50]} 11. Nb5 {[%clk 0:02:38]}  d5 {[%clk 0:02:48]} 12. cxd5 {[%clk 0:02:34]}  Nxd5 {[%clk 0:02:49]} 13. e4 {[%clk 0:02:33]}  Nf6 {[%clk 0:02:43]} 14. N1c3 {[%clk 0:02:06]}  Rd8 {[%clk 0:02:39]} 15. Qe2 {[%clk 0:02:03]}  Be7 {[%clk 0:02:40]} 16. Bg5 {[%clk 0:01:58]}  O-O {[%clk 0:02:39]} 17. Rfd1 {[%clk 0:01:50]}  Nc5 {[%clk 0:02:26]} 18. Bxf6 {[%clk 0:01:41]}  Bxf6 {[%clk 0:02:26]} 19. e5 {[%clk 0:01:41]}  Be7 {[%clk 0:02:24]} 20. Rxd8 {[%clk 0:01:37]}  Rxd8 {[%clk 0:02:24]} 21. Rd1 {[%clk 0:01:37]}  Rxd1+ {[%clk 0:02:22]} 22. Qxd1 {[%clk 0:01:36]}  h6 {[%clk 0:02:23]} 23. Nd6 {[%clk 0:01:21]}  Qd7 {[%clk 0:02:15]} 24. Ndb5 {[%clk 0:01:08]}  Qb7 {[%clk 0:02:08]} 25. Nd6 {[%clk 0:01:06]}  Qc6 {[%clk 0:02:04]} 26. Qd4 {[%clk 0:00:52]}  Qd7 {[%clk 0:01:53]} 27. Nce4 {[%clk 0:00:41]}  Bxd6 {[%clk 0:01:20]} 28. Nxc5 {[%clk 0:00:20]}  bxc5 {[%clk 0:01:16]} 29. Qd3 {[%clk 0:00:18]}  Kf8 {[%clk 0:01:12]} 30. exd6 {[%clk 0:00:18]}  f5 {[%clk 0:01:10]} 31. f4 {[%clk 0:00:18]}  Ke8 {[%clk 0:01:08]} 32. Kf2 {[%clk 0:00:18]}  Qc6 {[%clk 0:01:07]} 33. Ke3 {[%clk 0:00:17]}  Kd7 {[%clk 0:01:07]} 34. Qc3 {[%clk 0:00:15]}  Qxd6 {[%clk 0:01:02]} 35. Qxg7+ {[%clk 0:00:14]}  Kc8 {[%clk 0:01:01]} 36. Qxa7 {[%clk 0:00:14]}  Qd4+ {[%clk 0:01:01]} 37. Ke2 {[%clk 0:00:15]}  Qe4+ {[%clk 0:01:01]} 38. Kd2 {[%clk 0:00:15]}  Qd4+ {[%clk 0:00:59]} 39. Kc2 {[%clk 0:00:15]}  Qf2+ {[%clk 0:00:59]} 40. Kc3 {[%clk 0:00:14]}  Qe1+ {[%clk 0:00:54]} 41. Kb2 {[%clk 0:00:12]}  Qd2+ {[%clk 0:00:53]} 42. Ka3 {[%clk 0:00:12]}  Qb4+ {[%clk 0:00:50]} 43. Kb2 {[%clk 0:00:12]}  Qd2+ {[%clk 0:00:51]} 44. Kb1 {[%clk 0:00:12]}  Qxh2 {[%clk 0:00:42]} 45. Qxc5+ {[%clk 0:00:12]}  Kd7 {[%clk 0:00:43]} 46. Qa7+ {[%clk 0:00:11]}  Ke8 {[%clk 0:00:43]} 47. Qb8+ {[%clk 0:00:11]}  Kf7 {[%clk 0:00:44]} 48. Qc7+ {[%clk 0:00:10]}  Kg6 {[%clk 0:00:44]} 49. Qe7 {[%clk 0:00:08]}  Qg1+ {[%clk 0:00:44]} 50. Kb2 {[%clk 0:00:08]}  Qf2+ {[%clk 0:00:44]} 51. Kb1 {[%clk 0:00:08]}  Qe1+ {[%clk 0:00:30]} 52. Kb2 {[%clk 0:00:08]}  Qd2+ {[%clk 0:00:31]} 53. Kb1 {[%clk 0:00:07]}  Qd3+ {[%clk 0:00:31]} 54. Kb2 {[%clk 0:00:07]}  Qd4+ {[%clk 0:00:13]} 55. Kb1 {[%clk 0:00:07]}  Qg1+ {[%clk 0:00:14]} 56. Kb2 {[%clk 0:00:07]}  Qf2+ {[%clk 0:00:14]} 57. Kb1 {[%clk 0:00:08]}  Qe1+ {[%clk 0:00:15]} 58. Kb2 {[%clk 0:00:08]}  Qd2+ {[%clk 0:00:15]} 59. Kb1 {[%clk 0:00:08]}  Qd1+ {[%clk 0:00:16]} 60. Kb2 {[%clk 0:00:09]}  Qd2+ {[%clk 0:00:17]} 1/2-1/2

[Event "January 2 Early 2024"]
[Site "https://www.chess.com"]
[Date "2024.01.02"]
[Round "9"]
[White "Pesotskiy, Mikhail"]
[Black "Korol, Dimitry"]
[Result "1-0"]
[Board "147"]
[TimeControl "180+1"]
[WhiteFideId "34164453"]
[BlackFideId "14108003"]
[WhiteElo "2490"]
[BlackElo "2316"]
[WhiteTeam "RUS"]
[BlackTeam "UKR"]
[WhiteClock "0:01:33"]
[BlackClock "0:00:00"]

1. d4 {[%clk 0:02:59]}  Nf6 {[%clk 0:02:58]} 2. c4 {[%clk 0:02:59]}  c5 {[%clk 0:02:59]} 3. d5 {[%clk 0:02:58]}  b5 {[%clk 0:02:59]} 4. cxb5 {[%clk 0:02:59]}  a6 {[%clk 0:02:59]} 5. bxa6 {[%clk 0:03:00]}  Bxa6 {[%clk 0:02:59]} 6. Nc3 {[%clk 0:03:01]}  g6 {[%clk 0:03:00]} 7. Nf3 {[%clk 0:03:00]}  d6 {[%clk 0:03:00]} 8. e4 {[%clk 0:03:01]}  Bxf1 {[%clk 0:02:59]} 9. Kxf1 {[%clk 0:03:02]}  Bg7 {[%clk 0:03:00]} 10. g3 {[%clk 0:03:02]}  O-O {[%clk 0:03:00]} 11. Kg2 {[%clk 0:03:03]}  Nbd7 {[%clk 0:03:00]} 12. a4 {[%clk 0:03:04]}  Qb8 {[%clk 0:02:59]} 13. Qc2 {[%clk 0:03:01]}  Qb4 {[%clk 0:02:59]} 14. Bd2 {[%clk 0:03:01]}  Nb6 {[%clk 0:02:57]} 15. Rhe1 {[%clk 0:02:57]}  Nc4 {[%clk 0:02:53]} 16. Rab1 {[%clk 0:02:57]}  Rfb8 {[%clk 0:02:33]} 17. e5 {[%clk 0:02:55]}  Ne8 {[%clk 0:01:52]} 18. exd6 {[%clk 0:02:45]}  exd6 {[%clk 0:01:49]} 19. Re4 {[%clk 0:02:11]}  Nf6 {[%clk 0:00:40]} 20. Rh4 {[%clk 0:02:09]}  Nd7 {[%clk 0:00:16]} 21. Nd1 {[%clk 0:01:47]}  Qxa4 {[%clk 0:00:15]} 22. Rxc4 {[%clk 0:01:45]}  Qa2 {[%clk 0:00:13]} 23. b3 {[%clk 0:01:41]}  Qxc2 {[%clk 0:00:11]} 24. Rxc2 {[%clk 0:01:42]}  Ne5 {[%clk 0:00:11]} 25. Nxe5 {[%clk 0:01:40]}  Bxe5 {[%clk 0:00:12]} 26. Ne3 {[%clk 0:01:40]}  Ra3 {[%clk 0:00:10]} 27. Nc4 {[%clk 0:01:40]}  Raxb3 {[%clk 0:00:11]} 28. Rxb3 {[%clk 0:01:40]}  Rxb3 {[%clk 0:00:12]} 29. Nxe5 {[%clk 0:01:41]}  dxe5 {[%clk 0:00:12]} 30. Rxc5 {[%clk 0:01:41]}  Kg7 {[%clk 0:00:11]} 31. Bc3 {[%clk 0:01:37]}  Kf6 {[%clk 0:00:10]} 32. f4 {[%clk 0:01:35]}  Kf5 {[%clk 0:00:09]} 33. fxe5 {[%clk 0:01:35]}  Ke4 {[%clk 0:00:09]} 34. d6 {[%clk 0:01:35]}  Rb1 {[%clk 0:00:09]} 35. Rc7 {[%clk 0:01:31]}  Rd1 {[%clk 0:00:10]} 36. Rxf7 {[%clk 0:01:30]}  h5 {[%clk 0:00:09]} 37. d7 {[%clk 0:01:30]}  h4 {[%clk 0:00:07]} 38. gxh4 {[%clk 0:01:29]}  Rd3 {[%clk 0:00:07]} 39. Ba5 {[%clk 0:01:28]}  Kxe5 {[%clk 0:00:06]} 40. d8=Q {[%clk 0:01:28]}  Rxd8 {[%clk 0:00:06]} 41. Bxd8 {[%clk 0:01:28]}  Ke6 {[%clk 0:00:05]} 42. Rf6+ {[%clk 0:01:28]}  Kd7 {[%clk 0:00:05]} 43. Rxg6 {[%clk 0:01:29]}  Kc8 {[%clk 0:00:05]} 44. h5 {[%clk 0:01:30]}  Kd7 {[%clk 0:00:04]} 45. h6 {[%clk 0:01:31]}  Kc8 {[%clk 0:00:05]} 46. h7 {[%clk 0:01:32]}  Kd7 {[%clk 0:00:04]} 47. h8=Q {[%clk 0:01:33]}  Kc8 {[%clk 0:00:03]} 48. Bh4+ {[%clk 0:01:32]}  Kb7 {[%clk 0:00:00]} 49. Qh7+ {[%clk 0:01:33]} 1-0